fUST/lending_fUST_20241226
["ID","MTS","AMOUNT","RATE_DAILY","PERIOD"]
[346647264,1735150250473,-230.29584174,0.00013138,2]
[346647266,1735150250483,-370.7,0.00013138,2]
[346647268,1735150250492,-500.0,0.00013138,2]
[346647270,1735150250501,-500.0,0.00013138,2]
[346647272,1735150250511,-500.0,0.00013138,2]
[346647274,1735150250522,-500.0,0.00013138,2]
[346647276,1735150250532,-500.0,0.00013138,2]
[346647278,1735150250543,-500.0,0.00013138,2]
[346647280,1735150250552,-500.0,0.00013138,2]
[346647282,1735150250561,-1803.48,0.00013138,2]
[346647284,1735150250571,-500.0,0.00013138,2]
[346647286,1735150250580,-500.0,0.00013138,2]
[346647288,1735150250590,-500.0,0.00013138,2]
[346647290,1735150250600,-500.0,0.00013138,2]
[346647292,1735150250609,-500.0,0.00013138,2]
[346647294,1735150250619,-500.0,0.00013138,2]
[346647296,1735150250628,-500.0,0.00013138,2]
[346647298,1735150250638,-500.0,0.00013139,2]
[346647300,1735150250647,-500.0,0.00013139,2]
[346647302,1735150250656,-500.0,0.00013139,2]
[346647304,1735150250666,-571.1824543,0.00013139,2]
[346647306,1735150250676,-500.0,0.00013139,2]
[346647308,1735150250685,-500.0,0.00013139,2]
[346647310,1735150250694,-500.0,0.0001314,2]
[346647311,1735150250703,-153.0,0.00013178,2]
[346647312,1735150250713,-153.0,0.00013178,2]
[346647313,1735150250722,-153.0,0.00013178,2]
[346647314,1735150250732,-153.0,0.00013178,2]
[346647315,1735150250742,-587.0,0.00013216,2]
[346647316,1735150250751,-587.0,0.00013241,2]
[346647317,1735150250760,-1200.0,0.00013298,2]
[346647318,1735150250770,-764.054,0.000133,2]
[346647319,1735150250780,-317.29235454,0.00013342,2]
[346647320,1735150250790,-1500.0,0.00013381,2]
[346647321,1735150250799,-151.0,0.000134,2]
[346647322,1735150250810,-645.41,0.0001341,2]
[346647323,1735150250819,-500.0,0.0001341,2]
[346647324,1735150250829,-263.895864,0.00013411,2]
[346647328,1735150250926,-500.0,0.00013411,2]
[346647330,1735150250936,-500.0,0.00013411,2]
[346647332,1735150250947,-500.0,0.00013411,2]
[346647334,1735150250957,-500.0,0.00013411,2]
[346647336,1735150250967,-450.42,0.00013411,2]
[346647338,1735150250977,-438.85386255,0.00013411,2]
[346647340,1735150250987,-3978.28,0.00013411,2]
[346647342,1735150250996,-500.0,0.00013411,2]
[346647344,1735150251006,-500.0,0.00013411,2]
[346647346,1735150251015,-1439.5,0.00013411,2]
[346647348,1735150251025,-500.0,0.00013411,2]
[346647350,1735150251034,-500.0,0.00013411,2]
[346647352,1735150251044,-1038.1,0.00013411,2]
[346647354,1735150251054,-547.04,0.00013411,2]
[346647356,1735150251064,-179.12,0.00013411,2]
[346647358,1735150251074,-793.79,0.00013411,2]
[346647360,1735150251084,-500.0,0.00013411,2]
[346647362,1735150251094,-500.0,0.00013411,2]
[346647364,1735150251103,-10419.39,0.00013411,2]
[346647366,1735150251113,-500.0,0.00013411,2]
[346647368,1735150251123,-2515.68,0.00013411,2]
[346647370,1735150251133,-500.0,0.00013411,2]
[346647372,1735150251144,-500.0,0.00013411,2]
[346647374,1735150251154,-500.0,0.00013411,2]
[346647376,1735150251164,-539.76,0.00013411,2]
[346647379,1735150251173,-703.64,0.00013411,2]
[346647381,1735150251183,-500.0,0.00013411,2]
[346647383,1735150251197,-500.0,0.00013411,2]
[346647384,1735150251205,-311.76,0.00013412,2]
[346647386,1735150251215,-500.0,0.00013412,2]
[346647388,1735150251225,-500.0,0.00013412,2]
[346647390,1735150251236,-500.0,0.00013412,2]
[346647392,1735150251245,-500.0,0.00013412,2]
[346647394,1735150251255,-500.0,0.00013412,2]
[346647396,1735150251264,-500.0,0.00013412,2]
[346647398,1735150251274,-500.0,0.00013412,2]
[346647400,1735150251284,-1803.48,0.00013412,2]
[346647402,1735150251293,-559.68,0.00013412,2]
[346647404,1735150251302,-500.0,0.00013412,2]
[346647406,1735150251311,-500.0,0.00013412,2]
[346647408,1735150251321,-500.0,0.00013412,2]
[346647410,1735150251331,-500.0,0.00013412,2]
[346647412,1735150251340,-500.0,0.00013412,2]
[346647414,1735150251349,-500.0,0.00013412,2]
[346647416,1735150251359,-500.0,0.00013413,2]
[346647418,1735150251368,-500.0,0.00013413,2]
[346647420,1735150251378,-500.0,0.00013413,2]
[346647422,1735150251388,-500.0,0.00013413,2]
[346647424,1735150251397,-500.0,0.00013413,2]
[346647426,1735150251406,-500.0,0.00013414,2]
[346647428,1735150251414,-601.0,0.000135,2]
[346647430,1735150251423,-601.0,0.000135,2]
[346647432,1735150251433,-601.0,0.000135,2]
[346647434,1735150251443,-601.0,0.000135,2]
[346647436,1735150251452,-601.0,0.000135,2]
[346647438,1735150251461,-601.0,0.000135,2]
[346647440,1735150251471,-601.0,0.000135,2]
[346647442,1735150251480,-601.0,0.000135,2]
[346647444,1735150251489,-601.0,0.000135,2]
[346647446,1735150251499,-601.0,0.000135,2]
[346647448,1735150251508,-197.093,0.000135,2]
[346647450,1735150251517,-1000.0,0.00013577,2]
[346647452,1735150251527,-645.41,0.00013684,2]
[346647454,1735150251537,-500.0,0.00013684,2]
[346647456,1735150251546,-500.0,0.00013685,2]
[346647458,1735150251555,-500.0,0.00013685,2]
[346647460,1735150251564,-500.0,0.00013685,2]
[346647462,1735150251574,-500.0,0.00013685,2]
[346647464,1735150251583,-3978.28,0.00013685,2]
[346647466,1735150251592,-500.0,0.00013685,2]
[346647468,1735150251602,-500.0,0.00013685,2]
[346647470,1735150251611,-1439.5,0.00013685,2]
[346647472,1735150251620,-500.0,0.00013685,2]
[346647474,1735150251629,-504.33,0.00013685,2]
[346647476,1735150251639,-1038.1,0.00013685,2]
[346647478,1735150251648,-547.04,0.00013685,2]
[346647480,1735150251658,-793.79,0.00013685,2]
[346647482,1735150251667,-500.0,0.00013685,2]
[346647484,1735150251676,-365.87226685,0.00013685,2]
[346647486,1735150251686,-10419.39,0.00013685,2]
[346647488,1735150251695,-500.0,0.00013685,2]
[346647490,1735150251705,-2515.68,0.00013685,2]
[346647492,1735150251714,-500.0,0.00013685,2]
[346647494,1735150251723,-500.0,0.00013685,2]
[346647496,1735150251733,-500.0,0.00013685,2]
[346647498,1735150251742,-539.76,0.00013685,2]
[346647500,1735150251752,-703.64,0.00013685,2]
[346647502,1735150251761,-500.0,0.00013685,2]
[346647504,1735150251771,-500.0,0.00013685,2]
[346647506,1735150251780,-500.0,0.00013686,2]
[346647508,1735150251789,-500.0,0.00013686,2]
[346647510,1735150251799,-500.0,0.00013686,2]
[346647512,1735150251809,-646.19,0.00013686,2]
[346647515,1735150251819,-271.40053633,0.00013686,2]
[346647517,1735150251828,-500.0,0.00013686,2]
[346647518,1735150251838,-500.0,0.00013686,2]
[346647520,1735150251847,-1803.48,0.00013686,2]
[346647522,1735150251856,-500.0,0.00013686,2]
[346647524,1735150251866,-500.0,0.00013686,2]
[346647526,1735150251875,-500.0,0.00013686,2]
[346647528,1735150251885,-500.0,0.00013686,2]
[346647530,1735150251895,-500.0,0.00013686,2]
[346647532,1735150251904,-500.0,0.00013686,2]
[346647535,1735150251914,-637.47405859,0.00013687,2]
[346647537,1735150251923,-500.0,0.00013687,2]
[346647539,1735150251933,-500.0,0.00013687,2]
[346647541,1735150251943,-500.0,0.00013687,2]
[346647542,1735150251952,-599.28,0.00013687,2]
[346647544,1735150251961,-500.0,0.00013688,2]
[346647546,1735150251971,-500.0,0.00013698,2]
[346647548,1735150251982,-568.69899948,0.00013698,2]
[346647551,1735150251991,-1000.0,0.00013699,2]
[346647553,1735150252002,-1000.0,0.00013699,2]
[346647555,1735150252011,-1000.0,0.00013699,2]
[346647556,1735150252020,-1000.0,0.00013699,2]
[346647558,1735150252030,-1000.0,0.00013699,2]
[346647560,1735150252039,-847.338219,0.00013699,2]
[346647563,1735150252049,-151.0,0.00013699,2]
[346647565,1735150252058,-151.0,0.00013699,2]
[346647567,1735150252068,-151.0,0.00013699,2]
[346647569,1735150252078,-151.0,0.00013699,2]
[346647571,1735150252088,-151.0,0.00013699,2]
[346647573,1735150252097,-151.0,0.00013699,2]
[346647575,1735150252106,-151.0,0.00013699,2]
[346647576,1735150252115,-151.0,0.00013699,2]
[346647578,1735150252125,-151.0,0.000137,2]
[346647581,1735150252134,-155.0,0.00013703,2]
[346647583,1735150252143,-155.0,0.00013703,2]
[346647584,1735150252152,-155.0,0.00013703,2]
[346647587,1735150252162,-155.0,0.00013703,2]
[346647588,1735150252171,-155.0,0.00013703,2]
[346647590,1735150252180,-155.0,0.00013703,2]
[346647592,1735150252191,-155.0,0.00013703,2]
[346647595,1735150252202,-155.0,0.00013703,2]
[346647596,1735150252211,-161.27,0.00013703,2]
[346647598,1735150252221,-1000.0,0.00013707,2]
[346647601,1735150252231,-500.0,0.00013715,2]
[346647602,1735150252242,-601.64666101,0.00013715,2]
[346647604,1735150252251,-306.0,0.00013808,2]
[346647607,1735150252262,-645.41,0.00013958,2]
[346647609,1735150252271,-500.0,0.00013958,2]
[346647611,1735150252282,-338.1,0.00013959,2]
[346647613,1735150252290,-597.94,0.00013959,2]
[346647615,1735150252300,-500.0,0.00013959,2]
[346647617,1735150252309,-500.0,0.00013959,2]
[346647619,1735150252318,-3978.28,0.00013959,2]
[346647621,1735150252327,-500.0,0.00013959,2]
[346647623,1735150252336,-500.0,0.00013959,2]
[346647625,1735150252345,-1439.5,0.00013959,2]
[346647627,1735150252355,-500.0,0.00013959,2]
[346647628,1735150252364,-1038.1,0.00013959,2]
[346647630,1735150252373,-547.04,0.00013959,2]
[346647633,1735150252383,-793.79,0.00013959,2]
[346647635,1735150252393,-500.0,0.00013959,2]
[346647636,1735150252402,-10419.39,0.00013959,2]
[346647638,1735150252412,-185.01144457,0.00013959,2]
[346647641,1735150252422,-2515.68,0.00013959,2]
[346647643,1735150252431,-500.0,0.00013959,2]
[346647645,1735150252440,-500.0,0.00013959,2]
[346647647,1735150252450,-500.0,0.00013959,2]
[346647649,1735150252459,-539.76,0.00013959,2]
[346647651,1735150252469,-703.64,0.00013959,2]
[346647653,1735150252478,-500.0,0.00013959,2]
[346647655,1735150252488,-500.0,0.00013959,2]
[346647657,1735150252497,-500.0,0.0001396,2]
[346647659,1735150252506,-500.0,0.0001396,2]
[346647661,1735150252516,-500.0,0.0001396,2]
[346647663,1735150252525,-500.0,0.0001396,2]
[346647665,1735150252535,-500.0,0.0001396,2]
[346647666,1735150252544,-1803.48,0.0001396,2]
[346647667,1735150252554,-514.45,0.0001396,2]
[346647668,1735150252563,-500.0,0.0001396,2]
[346647669,1735150252573,-500.0,0.0001396,2]
[346647670,1735150252582,-500.0,0.0001396,2]
[346647671,1735150252592,-500.0,0.0001396,2]
[346647672,1735150252602,-168.54,0.0001396,2]
[346647673,1735150252689,-500.0,0.00013961,2]
[346647674,1735150252698,-208.60780376,0.00013961,2]
[346647675,1735150252708,-500.0,0.00013961,2]
[346647676,1735150252719,-433.7,0.00013962,2]
[346647677,1735150252728,-500.0,0.00013973,2]
[346647678,1735150252738,-160.94328851,0.00013973,2]
[346647679,1735150252747,-500.0,0.00013973,2]
[346647680,1735150252757,-622.39662805,0.00013973,2]
[346647681,1735150252767,-192.01321791,0.00013973,2]
[346647682,1735150252776,-500.0,0.00013973,2]
[346647684,1735150252785,-500.0,0.00013973,2]
[346647686,1735150252794,-500.0,0.00013973,2]
[346647687,1735150252803,-500.0,0.00013973,2]
[346647689,1735150252813,-400.0,0.00013973,2]
[346647690,1735150252822,-500.0,0.00013992,7]
[346647691,1735150252831,-500.0,0.00013992,7]
[346647693,1735150252840,-500.0,0.00013992,7]
[346647695,1735150252849,-184.17,0.00013992,7]
[346647697,1735150252859,-61010.28391308,0.00014,4]
[346647698,1735150252979,-3970.29978135,0.00014,4]
[346647699,1735150253091,-534.39,0.00011219,2]
[346647700,1735150253100,-534.39,0.00011493,2]
[346647701,1735150253111,-534.39,0.00011767,2]
[346647702,1735150253121,-534.39,0.00012041,2]
[346647703,1735150253130,-534.39,0.00012315,2]
[346647704,1735150253140,-534.39,0.00012589,2]
[346647706,1735150253149,-534.39,0.00012863,2]
[346647708,1735150253158,-534.39,0.00013137,2]
[346647709,1735150253167,-534.39,0.00013411,2]
[346647710,1735150253176,-534.39,0.00013685,2]
[346647711,1735150253186,-534.39,0.00013959,2]
[346647712,1735150253199,-68633.39956306,0.00014,4]
[346647713,1735150253211,-2417.235055,0.00014,4]
[346647714,1735150253225,-2954.09796109,0.00014,4]
[346647715,1735150253238,-1007.7,0.00014,4]
[346647716,1735150253249,-4361.40553258,0.00014,4]
[346647717,1735150253417,-151.0,0.00010959,2]
[346647718,1735150253427,-151.0,0.00010959,2]
[346647720,1735150253436,-151.0,0.00010959,2]
[346647722,1735150253445,-151.0,0.00010959,2]
[346647723,1735150253454,-151.0,0.00010959,2]
[346647725,1735150253463,-1042.61055036,0.00014,4]
[346647734,1735150253613,-2344.61140531,0.00014,4]
[346647735,1735150253624,-6847.37285962,0.00014,4]
[346647736,1735150253635,-514.70608187,0.00014,4]
[346647737,1735150253814,-417.625,0.00010838,2]
[346647738,1735150253943,-329.2151472,0.00010838,2]
[346647739,1735150253953,-151.0,0.00010959,2]
[346647740,1735150253964,-151.0,0.00011187,2]
[346647741,1735150253973,-74.78485281,0.00011219,2]
[346647742,1735150254005,-249.772408,0.00010959,2]
[346647743,1735150254091,-76.21514719,0.00011219,2]
[346647744,1735150254102,-151.0,0.00011219,2]
[346647745,1735150254113,-151.0,0.0001122,2]
[346647746,1735150254123,-151.0,0.00011221,2]
[346647747,1735150254132,-11672.24564094,0.00014,4]
[346647748,1735150254330,-384.3689997,0.00014,4]
[346647749,1735150254341,-365.86910035,0.00014,4]
[346647750,1735150254352,-247924.03499499,0.00014,4]
[346647751,1735150359870,713.0,0.00015,60]
[346647752,1735150648619,24900.0,9.945e-05,2]
[346647753,1735150851464,746.8401472,0.00010002,2]
[346647754,1735150866794,746.8401472,0.00010002,2]
[346647755,1735150882183,509.28253409,0.00010002,2]
[346647756,1735150940433,5176.755206,9.945e-05,2]
[346647757,1735150990155,746.8401472,0.00010002,2]
[346647800,1735151432859,-493.65,0.00010617,2]
[346647808,1735151432919,-106.35,0.00010617,2]
[346647810,1735151432929,-300.0,0.00010941,2]
[346647812,1735151432939,-300.0,0.00010941,2]
[346647814,1735151432948,-500.0,0.00010942,2]
[346647816,1735151432957,-500.0,0.00010942,2]
[346647818,1735151432967,-500.0,0.00010942,2]
[346647820,1735151432976,-207.24520646,0.00010942,2]
[346647823,1735151432987,-348.67412351,0.00010942,2]
[346647824,1735151432997,-500.0,0.00010942,2]
[346647826,1735151433006,-143.73067002,0.00010942,2]
[346647828,1735151433017,-287.18001657,0.00010942,2]
[346647830,1735151433026,-500.0,0.00010942,2]
[346647832,1735151433036,-564.07,0.00010942,2]
[346647834,1735151433045,-296.07374722,0.00010942,2]
[346647836,1735151433055,-182.29423621,0.00010942,2]
[346647838,1735151433068,-317.70576379,0.00010942,2]
[346647840,1735151433077,-500.0,0.00010942,2]
[346647842,1735151433087,-500.0,0.00010942,2]
[346647844,1735151433096,-1989.14,0.00010942,2]
[346647846,1735151433106,-631.19,0.00010942,2]
[346647848,1735151433116,-500.0,0.00010942,2]
[346647850,1735151433127,-719.75,0.00010942,2]
[346647852,1735151433136,-500.0,0.00010942,2]
[346647853,1735151433147,-642.76,0.00010942,2]
[346647854,1735151433158,-18.49138735,0.00010942,2]
[346647861,1735151438573,-687.31999347,0.00010833,2]
[346647863,1735151438641,-500.0,0.00010833,2]
[346647864,1735151438653,-3103.16,0.00010833,2]
[346647865,1735151438706,-1908.47930653,0.00010833,2]
[346647866,1735151438716,-481.50861265,0.00010942,2]
[346647867,1735151438726,-500.0,0.00010942,2]
[346647868,1735151438735,-500.0,0.00010942,2]
[346647869,1735151438744,-500.0,0.00010942,2]
[346647870,1735151438754,-500.0,0.00010942,2]
[346647871,1735151438763,-500.0,0.00010942,2]
[346647872,1735151438773,-500.0,0.00010942,2]
[346647873,1735151438783,-500.0,0.00010942,2]
[346647874,1735151438793,-500.0,0.00010942,2]
[346647875,1735151438803,-500.0,0.00010942,2]
[346647876,1735151438812,-21.83122774,0.00010942,2]
[346647877,1735151438824,-478.16877226,0.00010942,2]
[346647878,1735151438833,-897.9,0.00010942,2]
[346647879,1735151438843,-500.0,0.00010942,2]
[346647880,1735151438852,-500.0,0.00010942,2]
[346647881,1735151438861,-500.0,0.00010942,2]
[346647882,1735151438871,-500.0,0.00010942,2]
[346647883,1735151438881,-500.0,0.00010942,2]
[346647884,1735151438891,-500.0,0.00010942,2]
[346647885,1735151438900,-500.0,0.00010942,2]
[346647886,1735151438912,-500.0,0.00010942,2]
[346647887,1735151438922,-8726.05,0.00010942,2]
[346647888,1735151438934,-500.0,0.00010942,2]
[346647889,1735151438944,-500.0,0.00010942,2]
[346647890,1735151438953,-500.0,0.00010942,2]
[346647891,1735151438963,-500.0,0.00010942,2]
[346647892,1735151438972,-500.0,0.00010942,2]
[346647893,1735151438981,-500.0,0.00010942,2]
[346647894,1735151438991,-500.0,0.00010943,2]
[346647895,1735151439002,-500.0,0.00010943,2]
[346647896,1735151439012,-500.0,0.00010943,2]
[346647897,1735151439021,-272.82229085,0.00010943,2]
[346647951,1735151440824,-60.66590552,0.00010943,2]
[346647953,1735151440834,-282.53409448,0.00010943,2]
[346647959,1735151440886,-217.46590552,0.00010943,2]
[346647961,1735151440895,-500.0,0.00010943,2]
[346647962,1735151440906,-500.0,0.00010943,2]
[346647963,1735151440916,-500.0,0.00010943,2]
[346647964,1735151440925,-500.0,0.00010943,2]
[346647965,1735151440934,-500.0,0.00010943,2]
[346647966,1735151440944,-500.0,0.00010943,2]
[346647967,1735151440953,-500.0,0.00010943,2]
[346647968,1735151440963,-500.0,0.00010943,2]
[346647969,1735151440972,-500.0,0.00010943,2]
[346647970,1735151440982,-199.68409448,0.00010943,2]
[346647971,1735151440994,-300.31590552,0.00010943,2]
[346647972,1735151441003,-503.74109392,0.00010943,2]
[346647973,1735151441012,-500.0,0.00010943,2]
[346647974,1735151441022,-500.0,0.00010943,2]
[346647975,1735151441031,-500.0,0.00010943,2]
[346647976,1735151441040,-500.0,0.00010943,2]
[346647977,1735151441048,-500.0,0.00010943,2]
[346647978,1735151441057,-500.0,0.00010943,2]
[346647979,1735151441066,-500.0,0.00010943,2]
[346647980,1735151441075,-500.0,0.00010943,2]
[346647981,1735151441084,-500.0,0.00010943,2]
[346647982,1735151441093,-500.0,0.00010943,2]
[346647983,1735151441103,-500.0,0.00010943,4]
[346647984,1735151441111,-617.66711792,0.00010943,2]
[346647986,1735151441121,-500.0,0.00010943,2]
[346647987,1735151441131,-500.0,0.00010943,2]
[346647989,1735151441140,-500.0,0.00010943,2]
[346647991,1735151441149,-504.71752733,0.00010943,2]
[346647993,1735151441160,-500.0,0.00010943,2]
[346647995,1735151441170,-500.0,0.00010943,2]
[346647997,1735151441179,-500.0,0.00010943,2]
[346647999,1735151441188,-31.92756714,0.00010943,2]
[346648003,1735151441216,-290.77627598,0.00010943,2]
[346648006,1735151441228,-303.16615688,0.00010943,2]
[346648008,1735151441237,-500.0,0.00010943,2]
[346648010,1735151441246,-500.0,0.00010943,2]
[346648012,1735151441255,-500.0,0.00010943,2]
[346648014,1735151441265,-307.68242287,0.00010943,2]
[346648016,1735151441274,-500.0,0.00010943,2]
[346648018,1735151441284,-500.0,0.00010943,2]
[346648020,1735151441293,-500.0,0.00010943,2]
[346648022,1735151441302,-500.0,0.00010943,2]
[346648024,1735151441312,-500.0,0.00010943,2]
[346648026,1735151441321,-500.0,0.00010943,2]
[346648028,1735151441331,-500.0,0.00010943,2]
[346648030,1735151441339,-500.0,0.00010943,2]
[346648032,1735151441348,-500.0,0.00010943,2]
[346648034,1735151441357,-168.0,0.00010943,2]
[346648036,1735151441367,-500.0,0.00010943,2]
[346648038,1735151441376,-500.0,0.00010943,2]
[346648040,1735151441386,-500.0,0.00010943,2]
[346648042,1735151441395,-500.0,0.00010943,2]
[346648044,1735151441405,-500.0,0.00010943,2]
[346648046,1735151441415,-500.0,0.00010943,2]
[346648048,1735151441424,-500.0,0.00010943,2]
[346648050,1735151441433,-500.0,0.00010943,2]
[346648052,1735151441442,-500.0,0.00010943,2]
[346648054,1735151441451,-500.0,0.00010943,2]
[346648056,1735151441460,-500.0,0.00010943,2]
[346648058,1735151441470,-500.0,0.00010943,2]
[346648060,1735151441479,-500.0,0.00010943,2]
[346648062,1735151441489,-203.0072189,0.00010943,2]
[346648064,1735151441499,-500.0,0.00010943,2]
[346648066,1735151441508,-500.0,0.00010943,2]
[346648068,1735151441524,-500.0,0.00010943,2]
[346648071,1735151441534,-500.0,0.00010943,2]
[346648073,1735151441543,-500.0,0.00010943,2]
[346648075,1735151441552,-500.0,0.00010943,2]
[346648076,1735151441562,-500.0,0.00010943,2]
[346648078,1735151441571,-500.0,0.00010943,2]
[346648080,1735151441580,-500.0,0.00010943,2]
[346648082,1735151441590,-510.55129117,0.00010943,2]
[346648084,1735151441599,-504.37769987,0.00010943,2]
[346648086,1735151441608,-500.0,0.00010943,2]
[346648088,1735151441617,-500.0,0.00010943,2]
[346648090,1735151441626,-500.0,0.00010943,2]
[346648092,1735151441635,-500.0,0.00010943,2]
[346648094,1735151441644,-500.0,0.00010943,2]
[346648096,1735151441653,-500.0,0.00010943,2]
[346648098,1735151441662,-500.0,0.00010943,2]
[346648100,1735151441671,-500.0,0.00010943,2]
[346648102,1735151441680,-515.31405967,0.00010943,2]
[346648103,1735151441692,-500.0,0.00010943,2]
[346648105,1735151441701,-500.0,0.00010943,2]
[346648108,1735151441711,-500.0,0.00010943,2]
[346648110,1735151441720,-500.0,0.00010943,2]
[346648112,1735151441729,-500.0,0.00010943,2]
[346648114,1735151441738,-643.61,0.00010943,2]
[346648115,1735151441747,-500.0,0.00010943,2]
[346648118,1735151441757,-500.0,0.00010943,2]
[346648120,1735151441766,-500.0,0.00010943,2]
[346648122,1735151441775,-500.0,0.00010943,2]
[346648124,1735151441785,-500.0,0.00010943,2]
[346648126,1735151441794,-500.0,0.00010943,2]
[346648128,1735151441803,-500.0,0.00010943,2]
[346648130,1735151441812,-500.0,0.00010943,2]
[346648132,1735151441821,-500.0,0.00010943,2]
[346648134,1735151441830,-500.0,0.00010943,2]
[346648136,1735151441839,-500.0,0.00010943,2]
[346648138,1735151441848,-500.0,0.00010943,2]
[346648140,1735151441857,-179.99999999,0.00010943,2]
[346648142,1735151441866,-500.0,0.00010943,2]
[346648144,1735151441875,-504.86520373,0.00010943,2]
[346648146,1735151441884,-500.0,0.00010943,2]
[346648148,1735151441893,-500.0,0.00010943,2]
[346648150,1735151441907,-500.0,0.00010943,2]
[346648152,1735151441916,-1699.62,0.00010943,2]
[346648154,1735151441926,-500.0,0.00010943,2]
[346648156,1735151441935,-500.0,0.00010943,2]
[346648158,1735151441944,-500.0,0.00010943,2]
[346648160,1735151441953,-500.0,0.00010943,2]
[346648162,1735151441963,-500.0,0.00010943,2]
[346648164,1735151441972,-500.0,0.00010943,2]
[346648166,1735151441981,-500.0,0.00010943,2]
[346648168,1735151441990,-500.0,0.00010943,2]
[346648170,1735151441999,-502.46994027,0.00010943,2]
[346648172,1735151442009,-519.28,0.00010943,2]
[346648174,1735151442019,-500.0,0.00010943,2]
[346648176,1735151442029,-500.0,0.00010943,2]
[346648178,1735151442039,-500.0,0.00010943,2]
[346648180,1735151442048,-500.0,0.00010943,2]
[346648182,1735151442058,-500.0,0.00010943,2]
[346648184,1735151442068,-500.0,0.00010943,2]
[346648186,1735151442078,-500.0,0.00010943,2]
[346648188,1735151442087,-2345.24,0.00010943,2]
[346648190,1735151442098,-500.0,0.00010943,2]
[346648192,1735151442108,-500.0,0.00010943,2]
[346648194,1735151442118,-500.0,0.00010943,2]
[346648196,1735151442127,-500.0,0.00010943,2]
[346648198,1735151442136,-500.0,0.00010943,2]
[346648200,1735151442146,-500.0,0.00010944,2]
[346648202,1735151442156,-500.0,0.00010944,2]
[346648204,1735151442165,-500.0,0.00010944,2]
[346648206,1735151442174,-500.0,0.00010944,2]
[346648208,1735151442184,-500.0,0.00010944,2]
[346648210,1735151442193,-605.73,0.00010944,2]
[346648212,1735151442202,-500.0,0.00010944,2]
[346648214,1735151442212,-500.0,0.00010944,2]
[346648216,1735151442222,-500.0,0.00010946,2]
[346648218,1735151442232,-430.43,0.00011216,2]
[346648220,1735151442241,-500.0,0.00011216,2]
[346648222,1735151442251,-500.0,0.00011216,2]
[346648224,1735151442261,-1989.14,0.00011216,2]
[346648226,1735151442271,-719.75,0.00011216,2]
[346648228,1735151442281,-210.02,0.00011216,2]
[346648230,1735151442291,-500.0,0.00011216,2]
[346648232,1735151442301,-500.0,0.00011216,2]
[346648234,1735151442310,-500.0,0.00011216,2]
[346648236,1735151442319,-500.0,0.00011216,2]
[346648238,1735151442328,-500.0,0.00011216,2]
[346648240,1735151442337,-500.0,0.00011216,2]
[346648242,1735151442346,-500.0,0.00011216,2]
[346648244,1735151442356,-897.9,0.00011216,2]
[346648247,1735151442367,-500.0,0.00011216,2]
[346648249,1735151442377,-500.0,0.00011216,2]